Cogmind - Beta 13 @@@ ROGUE MODE // 2024.06.05 @ 03:36:28 Player: celerysam Result: Destroyed by G-47 Trooper with Particle Gun Performance ------------- Evolutions (2) 1000 Regions Visited (3) 600 Robots Destroyed (21) 105 Value Destroyed (718) 718 Prototype IDs (3) 60 Alien Tech Used (0) 0 Bonus (0) 0 TOTAL SCORE: 2483 Bonus ------- None Cogmind --------- Core Integrity 0/550 Matter 251/300 Energy 90/100 System Corruption 0% Temperature Cool (27) Movement Core (100) Ox1 Location -8/Materials Parts ------- > --- POWER (2) -------- (None) > --- PROPULSION (3) --- (None) > --- UTILITY (4) ------ Small Storage Unit Improved Targeting Computer Armor Integrity Analyzer > --- WEAPON (2) ------- (None) > --- INVENTORY (8) ---- VSS Leg VSS Leg Improved Carbon-fiber Leg System Shield Heavy EM Pulse Gun Advanced Beam Cannon High-powered Shotgun Gauss Rifle Peak State ------------ > --- POWER ------------ Light Nuclear Core Light Nuclear Core > --- PROPULSION ------- Light Treads Light Treads Improved Treads > --- UTILITY ---------- Small Storage Unit Improved Targeting Computer Armor Integrity Analyzer ECM Suite > --- WEAPON ----------- High-powered Shotgun Axe > --- INVENTORY -------- Improved Aluminum Leg VSS Leg VSS Leg System Shield Heavy EM Pulse Gun Beam Cannon Advanced Beam Cannon Gauss Rifle [Rating: 26] Favorites ----------- Power Ion Engine Engine Ion Engine Power Core Light Nuclear Core Propulsion Improved Aluminum Leg Treads Light Treads Leg Improved Aluminum Leg Utility Small Storage Unit Device ECM Suite Storage Small Storage Unit Processor Improved Targeting Computer Weapon Improved Light Cannon Energy Cannon Light EM Pulse Cannon Ballistic Gun Shotgun Ballistic Cannon Improved Light Cannon Slashing Weapon Axe Build | -11 -10 -9 -8 ------- Run | Yrd Mat Mat Mat Slots Evolved 4 | . . 2 2 Power 1 | . . . 1 Propulsion 1 | . . 1 . Utility 2 | . . 1 1 Weapon . | . . . . Parts Attached 31 | 6 5 6 14 Power 7 | 1 . 1 5 Engine 5 | 1 . 1 3 Core 2 | . . . 2 Reactor . | . . . . Propulsion 9 | 2 2 2 3 Treads 3 | . . . 3 Leg 6 | 2 2 2 . Wheel . | . . . . Hover . | . . . . Flight . | . . . . Utility 5 | 1 1 1 2 Device 2 | . . 1 1 Storage 1 | 1 . . . Processor 2 | . 1 . 1 Hackware . | . . . . Protection . | . . . . Artifact . | . . . . Weapon 10 | 2 2 2 4 Energy Gun . | . . . . Energy Cannon 2 | . . . 2 Ballistic Gun 6 | 2 1 2 1 Ballistic Cannon 1 | . 1 . . Launcher . | . . . . Special Weapon . | . . . . Impact Weapon . | . . . . Slashing Weapon 1 | . . . 1 Piercing Weapon . | . . . . Special Melee Weapon . | . . . . Unidentified Prototypes . | . . . . Parts Lost 10 | . . . 10 Power 3 | . . . 3 Propulsion 4 | . . . 4 Utility 1 | . . . 1 Weapon 2 | . . . 2 Highest Loss Streak 8 | . . . 8 To Critical Strikes . | . . . . Average Slot Usage (%) 97 | . 99 99 95 Engine 10 | . 14 11 8 Core 3 | . . . 7 Treads 8 | . . . 18 Leg 20 | . 28 32 7 Device 10 | . . 11 15 Storage 10 | . 14 11 9 Processor 11 | . 13 11 11 Energy Cannon 1 | . . . 3 Ballistic Gun 10 | . 14 11 7 Ballistic Cannon 6 | . 13 11 . Slashing Weapon 3 | . . . 6 Naked Turns . | . . . . Heaviest Build 28 | 12 16 21 28 Greatest Support 63 | 20 26 39 63 Greatest Overweight (x) 7 | 1 . . 7 Average Overweight (x) . | . . . . Largest Inventory Capacity 8 | 8 8 8 8 Average Capacity 7 | 7 8 8 8 Most Carried 8 | 6 8 8 8 Average Carried 7 | 5 7 7 7 Final Capacity 8 | 8 8 8 8 Final Carried 8 | 6 8 8 8 Class Distribution -------------------- 97% | Mutant Dominant Class ---------------- Mutant | -10/Materials Mutant | -9/Materials Mutant | -8/Materials Resources | -11 -10 -9 -8 ----------- Run | Yrd Mat Mat Mat Matter Collected 637 | 202 18 112 305 Remotely . | . . . . Salvage Created 688 | . 15 161 512 Parts 48 | . . 18 30 Haulers Intercepted . | . . . . Recyclers Shooed . | . . . . Parts Field Recycled . | . . . . Retrieved Matter . | . . . . Parts Self-Destructed . | . . . . Prevented . | . . . . Kills | -11 -10 -9 -8 ------- Run | Yrd Mat Mat Mat Combat Hostiles Destroyed 20 | . 1 9 10 Melee 8 | . . . 8 Guns 8 | . . 7 1 Cannons 4 | . 1 2 1 Classes Destroyed 6 | . 1 3 2 Watcher 1 | . . 1 . Swarmer 8 | . . 8 . Grunt 5 | . 1 . 4 Sentry 1 | . . 1 . Specialist 5 | . . . 5 Hunter 1 | . . . 1 Best Kill Streak 5 | . 1 5 4 Combat Bots Only 4 | . 1 4 4 Max Kills in Single Turn 1 | . 1 1 1 Gunslinging . | . . . . Exploded . | . . . . Melee 1 | . . . 1 Uniques/NPCs Destroyed . | . . . . Combat | -11 -10 -9 -8 -------- Run | Yrd Mat Mat Mat Hostile Shots Fired 230 | . 4 63 163 Missed 56 | . . 17 39 Damage Taken 2200 | . 43 421 1736 Core 582 | . . 25 557 Absorbed by Shields . | . . . . Regen/Repaired (Parts) 68 | . . . 68 Core Remaining (%) 97 | 100 100 93 . Volleys Fired 45 | . 3 25 17 Largest 2 | . 2 2 2 Hottest 79 | . 59 62 79 Shots Fired 73 | . 6 48 19 Gun 33 | . 3 23 7 Cannon 40 | . 3 25 12 Launcher . | . . . . Special . | . . . . Kinetic 61 | . 6 48 7 Thermal 10 | . . . 10 Explosive . | . . . . Electromagnetic 2 | . . . 2 Robot Hit Streak 14 | . 3 10 14 Robot Miss Streak 4 | . 1 4 2 Penetration Max . | . . . . Secondary Targets . | . . . . Shots Hit Robots 62 | . 4 27 31 Core Hits 30 | . 2 12 16 Critical Kills . | . . . . Critical Parts Destroyed . | . . . . Critical Strikes 2 | . . 1 1 Blast 1 | . . 1 . Sever 1 | . . . 1 Melee Attacks 24 | . . . 24 Impact . | . . . . Slashing 24 | . . . 24 Piercing . | . . . . Sneak Attacks . | . . . . Combat Hostiles . | . . . . Follow-up Attacks . | . . . . Damage Inflicted 1350 | . 70 417 863 Guns 366 | . 12 214 140 Cannons 427 | . 58 203 166 Explosions . | . . . . Melee 557 | . . . 557 Ramming . | . . . . Kinetic 627 | . 70 417 140 Thermal 121 | . . . 121 Explosive . | . . . . Electromagnetic 45 | . . . 45 Impact . | . . . . Slashing 557 | . . . 557 Piercing . | . . . . Highest Corruption 1 | . . 1 . Average Corruption 1 | . . 1 . Corruption Purged . | . . . . Corruption Blocked . | . . . . Effects 1 | . . 1 . Energy Discharges 1 | . . 1 . Overload Shots . | . . . . Overflow Damage 1 | . . 1 . Projectiles 1 | . . 1 . Explosions . | . . . . Melee . | . . . . Knockbacks 1 | . . 1 . Impact . | . . . . Kinetic 1 | . . 1 . Secondary . | . . . . Self-Inflicted Damage . | . . . . Shots . | . . . . Rammed . | . . . . Targets Rammed . | . . . . Kicked . | . . . . Crushed . | . . . . Highest Temperature 182 | . 17 38 182 Average Temperature 51 | . 11 19 74 Received Heat Transfer 573 | . 24 81 468 Siege Activations . | . . . . Robots Corrupted . | . . . . Combat Hostiles . | . . . . Parts Fried . | . . . . Impact Corruptions . | . . . . Robots Melted . | . . . . Combat Hostiles . | . . . . Parts Melted . | . . . . Heat Transferred 259 | . . . 259 Parts Sabotaged . | . . . . Parts Stolen . | . . . . Parts Stripped . | . . . . Power Chain Reactions . | . . . . Alert | -11 -10 -9 -8 ------- Run | Yrd Mat Mat Mat Peak Influence 264 | . 50 264 158 Initial 26 | . . . 26 Average 61 | . 9 129 49 Maximum Alert Level 1 | . . 1 . Low Security (%) 93 | 100 100 79 100 Level 1 6 | . . 20 . Level 2 . | . . . . Level 3 . | . . . . Level 4 . | . . . . Level 5 . | . . . . High Security . | . . . . Max Security . | . . . . Squads Dispatched 7 | . 1 1 5 Investigation 3 | . . 1 2 Extermination . | . . . . Reinforcement 4 | . 1 . 3 Assault . | . . . . Garrison . | . . . . Intercept . | . . . . Searches Triggered . | . . . . Construction Impeded . | . . . . Haulers Reinforced . | . . . . Active Scanning Responses . | . . . . Cargo Convoy Interrupts . | . . . . Stealth | -11 -10 -9 -8 --------- Run | Yrd Mat Mat Mat Distress Signals 6 | . . 1 5 Communications Jammed . | . . . . Distress Signals . | . . . . Times Spotted 53 | . 4 20 29 Peak Tracking Total 7 | . 2 5 7 Tactical Retreats 7 | . . 3 4 Traps | -11 -10 -9 -8 ------- Run | Yrd Mat Mat Mat Traps Triggered 1 | . . 1 . Indirectly . | . . . . Trap Hack Attempts . | . . . . Triggered . | . . . . Disarmed . | . . . . Reprogrammed . | . . . . Reused . | . . . . Traps Extracted . | . . . . Installed . | . . . . Triggered . | . . . . Machines | -11 -10 -9 -8 ---------- Run | Yrd Mat Mat Mat Machines Disabled . | . . . . Max in Single Turn . | . . . . Machines Repaired . | . . . . Machines Dismantled . | . . . . Machines Sabotaged . | . . . . Overloaded Fab Kills . | . . . . Hacking | -11 -10 -9 -8 --------- Run | Yrd Mat Mat Mat Machines Accessed 8 | . 2 1 5 Terminals 7 | . 2 1 4 Fabricators . | . . . . Repair Stations 1 | . . . 1 Recycling Units . | . . . . Scanalyzers . | . . . . Garrison Access . | . . . . Total Hacks 26 | . 6 4 16 Successful 14 | . 5 3 6 Failed 12 | . 1 1 10 Catastrophic 4 | . . 1 3 Database Lockouts . | . . . . Manual 2 | . . 1 1 Terminals 22 | . 6 4 12 Fabricators . | . . . . Repair Stations 4 | . . . 4 Recycling Units . | . . . . Scanalyzers . | . . . . Garrison Access . | . . . . Terminal Hacks 12 | . 5 3 4 Record 1 | . . . 1 Prototype ID Bank 2 | . 1 1 . Alert Level 3 | . 1 . 2 Unreport Threat 2 | . 1 . 1 Locate Traps 2 | . 1 1 . Dispatch Records 1 | . . 1 . Hauler Manifests 1 | . 1 . . Fabricator Hacks . | . . . . Repair Station Hacks 2 | . . . 2 Scan Component 1 | . . . 1 Repair 1 | . . . 1 Recycling Unit Hacks . | . . . . Scanalyzer . | . . . . Garrison Access Hacks . | . . . . Unauthorized Hacks . | . . . . Terminals . | . . . . Fabricators . | . . . . Repair Stations . | . . . . Recycling Units . | . . . . Scanalyzers . | . . . . Garrison Access . | . . . . Data Cores Recovered . | . . . . Used . | . . . . Hacking Detections 7 | . 2 1 4 Full Trace Events 4 | . 1 1 2 Feedback Events . | . . . . Feedback Blocked . | . . . . Robot Schematics Acquired . | . . . . Robots Built . | . . . . Authchips . | . . . . Time . | . . . . Total Robot Build Rating . | . . . . Part Schematics Acquired . | . . . . Parts Built . | . . . . Authchips . | . . . . Time . | . . . . Total Part Build Rating . | . . . . Parts Repaired 1 | . . . 1 Time 32 | . . . 32 Parts Recycled . | . . . . Recycled Matter . | . . . . Retrieved Matter . | . . . . Retrieved Components . | . . . . Parts Scanalyzed . | . . . . Part Schematics Acquired . | . . . . Parts Damaged . | . . . . Bothacking | -11 -10 -9 -8 ------------ Run | Yrd Mat Mat Mat Used RIF Installer . | . . . . Robots Hacked . | . . . . Non-combat . | . . . . Combat . | . . . . Robot Hacks Applied . | . . . . Relay Couplers Released . | . . . . Fabnet Peak Effective % . | . . . . Robots Rewired . | . . . . Allies Hacked . | . . . . Hacks Repelled . | . . . . Allies | -11 -10 -9 -8 -------- Run | Yrd Mat Mat Mat Total Allies . | . . . . Largest Group . | . . . . Highest-Rated Group . | . . . . Highest-Rated Ally . | . . . . Total Orders . | . . . . Ally Attacks . | . . . . Total Damage . | . . . . Kills . | . . . . Allies Corrupted . | . . . . Allies Melted . | . . . . Intel | -11 -10 -9 -8 ------- Run | Yrd Mat Mat Mat Robot Analysis Total . | . . . . Derelict Logs Recovered . | . . . . Drone Launches . | . . . . Drone Recoveries . | . . . . Exploration | -11 -10 -9 -8 ------------- Run | Yrd Mat Mat Mat Turns Passed 1340 | 131 257 413 539 Spaces Moved 712 | 74 193 262 183 Core 12 | 10 . . 2 Treads 89 | . . . 89 Legs 611 | 64 193 262 92 Wheels . | . . . . Hover . | . . . . Flight . | . . . . Fastest Speed 50 | 50 120 120 120 Average Speed 124 | 111 120 120 142 Slowest Speed 400 | 120 120 120 400 Overloaded Moves . | . . . . Propulsion Burnouts . | . . . . Robots Hopped . | . . . . Cave-ins Triggered . | . . . . Exploration Rate (%) 21 | 6 32 28 18 Regions Visited 3 Branch Regions . Pre-discovered Areas . | . . . . Known Exits Taken . | . . . . Unknown Exits Taken 3 | 1 1 1 . Scrap Searched . | . . . . Spaces Dug . | . . . . Terrain Destroyed 1 | . . 1 . Melee . | . . . . Projectile 1 | . . 1 . AOE . | . . . . Terrain Rammed . | . . . . Walls Destroyed . | . . . . Machines Disabled . | . . . . Actions | -11 -10 -9 -8 --------- Run | Yrd Mat Mat Mat Total 1054 | 122 215 314 403 Wait 195 | 32 . 15 148 Move 709 | 73 192 261 183 Hop . | . . . . Pick Up 29 | 11 7 3 8 Fast Attach 6 | 1 2 . 3 Attach 11 | 5 . 2 4 Detach . | . . . . Swap 14 | . 3 4 7 Drop 21 | . 8 4 9 Fire 45 | . 3 25 17 Melee 24 | . . . 24 Ram . | . . . . Kick . | . . . . Crush . | . . . . Escape Stasis . | . . . . Rewire . | . . . . Trap . | . . . . Miscellaneous . | . . . . Route ------- -11/Scrapyard -10/Materials -9/Materials (discovered 2 exits: *Mat / [*Min]) -8/Materials History --------- Turn | Location | Event 2 | -11/Scrapyard | Met Revision 17 31 | -11/Scrapyard | Discovered new exit (range 15) 132 | -11/Scrapyard | Entered Materials 310 | -10/Materials | Build established: Mutant 358 | -10/Materials | Discovered new exit (range 15) 389 | -10/Materials | Entered another Materials area 389 | -9/Materials | Evolved 2 slots: Propulsion x1, Utility x1 634 | -9/Materials | Discovered new exit (range 13) 773 | -9/Materials | Discovered new exit (range 10) 802 | -9/Materials | Entered another Materials area 802 | -8/Materials | Evolved 2 slots: Power x1, Utility x1 1001 | -8/Materials | Repaired Imp. Ion Engine 1320 | -8/Materials | Core integrity fell below 50% 1336 | -8/Materials | Core integrity fell below 20% 1341 | -8/Materials | Destroyed by G-47 Trooper with Particle Gun Last Messages --------------- 01310_ Lgt. Treads destroyed. 01312_ Penetrated by Slug. 01314_ Lgt. Nuclear Core destroyed. 01315_ Penetrated by Slug. 01317_ Atomic Centrifuge disabled. 01318_ Penetrated by Slug. 01318_ Imp. Treads destroyed. 01318_ Lgt. Treads destroyed. 01321_ Penetrated by Slug. 01324_ X-62 Marksman destroyed. 01325_ Penetrated by Slug. 01326_ Acquired 73 matter. 01328_ Penetrated by Slug. 01328_ Beam Cannon destroyed. 01329_ Imp. Deuterium Engine destroyed. 01335_ Penetrated by Slug. 01338_ ECM Suite destroyed. 01339_ U-05 Engineer destroyed. 01341_ Axe destroyed. [Achievement: Back For More] Map ----- +----------------------------------------------------+ | ?????????????????????????????????????????????????? | | ?????????????????????????????????????????????????? | | ?????????????????????????????????????????????????? | | ?????????????????????????????????????????????????? | | ?????????????????????????????????????????????????? | | ?????????????????????????????????????????????????? | | ?????????????????????????????????????????????????? | | ??????????????????????????????????????"??????????? | | ?????????????????????????????????????? ??????????? | | ?????????????????????????????????????? ??????????? | | ?????????????????????????????????????? ??????????? | | ?????????????????????????????????????? ??????????? | | ?????????????????????????????????????? ??????????? | | ?????????????????????????????????????# #?????????? | | ?????????????????????????????????????# #?????????? | | ?????????????????????????????????????# #?????????? | | ?????????????????????????###?????????# #?????????? | | ????????????????????###### ####??????# #?????????? | | ????????????????????#!! T ######## #?????????? | | ????????????????????#!! # # #?????????? | | ????????????????????# Y""" #! """ # ####??????? | | ????????????????????# """ # "T" + * #??????? | | ???????#######??????# "" # # =%!#??????? | | ???????# #?###### # # = #??????? | | ???????# "" #?#"""## [!! # + #??????? | | ???????# ""]!#?#"R"## ! @x ######## ## #??????? | | ???????# "T !###" "######/#####???#### ## #??????? | | ???????# "" [#*%[ !!! #??????# ## #??????? | | ???????# ""=%+!! =!!! w#??????# ##### #??????? | | ???????# =[#[/= !!! "" ######## #???# #??????? | | ???????# " !!##! T" == #???# #??????? | | ???????# " ## ""!%##########???# #??????? | | ???????# "" ## !|#????????????# ######## | | ???????# """ ## a #????????????#^ | | ???????# ## ### ^ #????????????# | | ???????######## #?###^ #????????????#"^ "" | | ??????????????# #???#^ g#????????????#T "" | | ??????????????# #???#^ g #????????????#" "" | | ??????????????# ???? ^ g #????????????# | | ??????????????# ???##### #????????????# | | ??????????????# ???????# #????????????# ######## | | ??????????????? ???????# #????????????# #??????? | | ??????????????? ??????? ?????????????# #??????? | | ??????????????? ??????? ?????????????# #??????? | | ??????????????? ??????? T ?????????????# #??????? | | ???????????????????????? ? ?????????????# #??????# | | ????????????????????????????????????????# #??????# | | ????????????????????????????????????????# #??????# | | ????????????????????????????????????????# #??????# | | ????????????????????????????????????????# #??????# | +----------------------------------------------------+ Best States ------------- Heat Dissipation 53 Energy Generation 25 Energy Capacity 350 Matter Stores 246 Matter Capacity 300 Sight Range 16 Terrain Scan Density 10 ECM Strength 1 Evasion (%) 55 Targeting Accuracy 6 Armor Integrity Analysis 30 Recoil Reduction 3 Item Schematics ----------------- None Robot Schematics ------------------ None Fabricated ------------ Nothing Alien Tech Used ----------------- None Achievements -------------- Back For More Challenges ------------ None Game ------ Seed ArmoredChargeClaws Manual? 0 Play Time 00:25:43 Cumulative 26.8 hours Start 2024.06.05 @ 03:08:09 End 2024.06.05 @ 03:36:28 Sessions 1 Manual Loads 0 Difficulty Rogue Special Mode None Game No. 50 Rogue 50 Adventurer 0 Explorer 0 Win Type - Total 0 Types 0/0/0/0/0/0/0/0/0 Lore% 19 Gallery% 28 Achievement% 21 Wizard Run 0 Options --------- Layout 1 ASCII 0 Keyboard 0 Movement Mouse Keybinds 0 Fullscreen 1 Font 32/SmallcapsGlow Map View 50x35 Zoom Use 0% Tactical HUD 1 Map Filters NONE Filters NONE Steam 1 RUN: b8c1bac5-a938-4006-8502-5dacee1c3e2c